fUSD/lending_fUSD_20260528
["ID","MTS","AMOUNT","RATE_DAILY","PERIOD"]
[423164223,1779898267000,-1144.19676,0.00039756,7]
[423164232,1779898267000,-896.806125,0.00039756,30]
[423164231,1779898267000,-896.806125,0.00039756,30]
[423164234,1779898267000,-526.540791,0.00039756,30]
[423164237,1779898267000,-896.806125,0.00039756,30]
[423164239,1779898267000,-526.540791,0.00039756,30]
[423164241,1779898267000,-526.540791,0.00039756,30]
[423164240,1779898267000,-896.806125,0.00039756,30]
[423164243,1779898267000,-227.545438,0.00039756,30]
[423164238,1779898267000,-896.806125,0.00039756,30]
[423164244,1779898267000,-896.806125,0.00039756,30]
[423164242,1779898267000,-526.540789,0.00039756,30]
[423164245,1779898267000,-227.545438,0.00039756,30]
[423164183,1779898267000,-602.995536,0.00039756,30]
[423164233,1779898267000,-896.806125,0.00039756,30]
[423164216,1779898267000,-151.0,0.00039756,30]
[423164229,1779898267000,-526.540791,0.00039756,30]
[423164213,1779898267000,-151.0,0.00039756,30]
[423164219,1779898267000,-1144.19676,0.00039756,7]
[423164191,1779898267000,-602.995536,0.00039756,30]
[423164193,1779898267000,-151.0,0.00039756,30]
[423164189,1779898267000,-602.995536,0.00039756,30]
[423164196,1779898267000,-455.373379,0.00039756,30]
[423164198,1779898267000,-455.373379,0.00039756,30]
[423164197,1779898267000,-455.373379,0.00039756,30]
[423164194,1779898267000,-455.373379,0.00039756,30]
[423164200,1779898267000,-151.0,0.00039756,30]
[423164195,1779898267000,-602.99554,0.00039756,30]
[423164199,1779898267000,-455.373371,0.00039756,30]
[423164201,1779898267000,-151.0,0.00039756,30]
[423164202,1779898267000,-151.0,0.00039756,30]
[423164190,1779898267000,-151.0,0.00039756,30]
[423164206,1779898267000,-151.0,0.00039756,30]
[423164211,1779898267000,-1144.19676,0.00039756,7]
[423164215,1779898267000,-1144.19676,0.00039756,7]
[423164214,1779898267000,-1144.19676,0.00039756,7]
[423164212,1779898267000,-151.0,0.00039756,30]
[423164205,1779898267000,-151.0,0.00039756,30]
[423164207,1779898267000,-151.0,0.00039756,30]
[423164217,1779898267000,-1144.19676,0.00039756,7]
[423164210,1779898267000,-151.0,0.00039756,30]
[423164208,1779898267000,-1144.19676,0.00039756,7]
[423164209,1779898267000,-1144.19676,0.00039756,7]
[423164204,1779898267000,-289.540352,0.00039756,30]
[423164203,1779898267000,-151.621712,0.00039756,30]
[423164285,1779898268000,-151.0,0.00039756,30]
[423164282,1779898268000,-608.349859,0.00039756,30]
[423164284,1779898268000,-151.0,0.00039756,30]
[423164287,1779898268000,-151.0,0.00039756,30]
[423164278,1779898268000,-608.349859,0.00039756,30]
[423164280,1779898268000,-608.349859,0.00039756,30]
[423164279,1779898268000,-608.349859,0.00039756,30]
[423164276,1779898268000,-1310.490769,0.00039756,30]
[423164288,1779898268000,-608.349859,0.00039756,30]
[423164286,1779898268000,-608.349859,0.00039756,30]
[423164281,1779898268000,-608.349859,0.00039756,30]
[423164283,1779898268000,-608.349859,0.00039756,30]
[423164291,1779898268000,-708.380572,0.00039756,30]
[423164289,1779898268000,-608.349859,0.00039756,30]
[423164293,1779898268000,-708.380572,0.00039756,30]
[423164295,1779898268000,-708.380572,0.00039756,30]
[423164292,1779898268000,-608.349859,0.00039756,30]
[423164294,1779898268000,-608.349855,0.00039756,30]
[423164300,1779898268000,-151.0,0.00039756,30]
[423164302,1779898268000,-708.380572,0.00039756,30]
[423164298,1779898268000,-151.0,0.00039756,30]
[423164296,1779898268000,-151.0,0.00039756,30]
[423164299,1779898268000,-511.751654,0.00039756,30]
[423164297,1779898268000,-511.751654,0.00039756,30]
[423164277,1779898268000,-250.0,0.00039756,7]
[423164290,1779898268000,-608.349859,0.00039756,30]
[423164269,1779898268000,-1310.490765,0.00039756,30]
[423164301,1779898268000,-511.751654,0.00039756,30]
[423164271,1779898268000,-1310.490765,0.00039756,30]
[423164249,1779898268000,-227.545438,0.00039756,30]
[423164248,1779898268000,-896.806125,0.00039756,30]
[423164247,1779898268000,-227.545438,0.00039756,30]
[423164251,1779898268000,-227.545438,0.00039756,30]
[423164250,1779898268000,-896.806125,0.00039756,30]
[423164262,1779898268000,-151.0,0.00039756,30]
[423164261,1779898268000,-227.545438,0.00039756,30]
[423164258,1779898268000,-151.0,0.00039756,30]
[423164252,1779898268000,-896.806125,0.00039756,30]
[423164260,1779898268000,-151.0,0.00039756,30]
[423164254,1779898268000,-896.806127,0.00039756,30]
[423164255,1779898268000,-227.545438,0.00039756,30]
[423164270,1779898268000,-1310.490765,0.00039756,30]
[423164253,1779898268000,-227.545438,0.00039756,30]
[423164257,1779898268000,-227.545438,0.00039756,30]
[423164259,1779898268000,-227.545438,0.00039756,30]
[423164264,1779898268000,-227.54543,0.00039756,30]
[423164275,1779898268000,-1310.490765,0.00039756,30]
[423164267,1779898268000,-1310.490765,0.00039756,30]
[423164263,1779898268000,-297.0,0.00039756,30]
[423164274,1779898268000,-1310.490765,0.00039756,30]
[423164265,1779898268000,-1310.490765,0.00039756,30]
[423164273,1779898268000,-1310.490765,0.00039756,30]
[423164266,1779898268000,-1310.490765,0.00039756,30]
[423164272,1779898268000,-1310.490765,0.00039756,30]
[423164268,1779898268000,-1310.490765,0.00039756,30]
[423164256,1779898268000,-227.545438,0.00039756,30]
[423164304,1779898268000,-708.380572,0.00039756,30]
[423164318,1779898268000,-151.0,0.00039756,30]
[423164315,1779898268000,-708.380572,0.00039756,30]
[423164335,1779898268000,-151.0,0.00039756,30]
[423164337,1779898268000,-179.719601,0.00039756,30]
[423164339,1779898268000,-272.484614,0.00039756,30]
[423164341,1779898268000,-1689.068888,0.00039756,28]
[423164338,1779898268000,-151.0,0.00039756,30]
[423164340,1779898268000,-1689.068888,0.00039756,28]
[423164342,1779898268000,-1689.068888,0.00039756,28]
[423164344,1779898268000,-1689.068888,0.00039756,28]
[423164354,1779898268000,-151.0,0.00039756,30]
[423164343,1779898268000,-1689.068888,0.00039756,28]
[423164345,1779898268000,-1689.068888,0.00039756,28]
[423164347,1779898268000,-1689.068888,0.00039756,28]
[423164336,1779898268000,-151.0,0.00039756,30]
[423164348,1779898268000,-1689.068888,0.00039756,28]
[423164346,1779898268000,-1689.068888,0.00039756,28]
[423164353,1779898268000,-151.0,0.00039756,30]
[423164350,1779898268000,-1689.068888,0.00039756,28]
[423164351,1779898268000,-1689.068884,0.00039756,28]
[423164352,1779898268000,-151.0,0.00039756,30]
[423164355,1779898268000,-162.306659,0.00039756,30]
[423164358,1779898268000,-151.0,0.00039756,30]
[423164357,1779898268000,-151.0,0.00039756,30]
[423164359,1779898268000,-151.0,0.00039756,30]
[423164362,1779898268000,-151.0,0.00039756,30]
[423164361,1779898268000,-151.0,0.00039756,30]
[423164314,1779898268000,-151.0,0.00039756,30]
[423164349,1779898268000,-1689.068888,0.00039756,28]
[423164333,1779898268000,-151.0,0.00039756,30]
[423164356,1779898268000,-151.0,0.00039756,30]
[423164331,1779898268000,-708.380568,0.00039756,30]
[423164316,1779898268000,-511.751654,0.00039756,30]
[423164334,1779898268000,-151.0,0.00039756,30]
[423164303,1779898268000,-151.0,0.00039756,30]
[423164306,1779898268000,-151.0,0.00039756,30]
[423164309,1779898268000,-511.751654,0.00039756,30]
[423164308,1779898268000,-511.751654,0.00039756,30]
[423164311,1779898268000,-708.380572,0.00039756,30]
[423164310,1779898268000,-151.0,0.00039756,30]
[423164313,1779898268000,-511.751654,0.00039756,30]
[423164307,1779898268000,-708.380572,0.00039756,30]
[423164312,1779898268000,-708.380572,0.00039756,30]
[423164321,1779898268000,-151.0,0.00039756,30]
[423164317,1779898268000,-151.0,0.00039756,30]
[423164305,1779898268000,-511.751654,0.00039756,30]
[423164327,1779898268000,-151.0,0.00039756,30]
[423164322,1779898268000,-151.0,0.00039756,30]
[423164332,1779898268000,-151.0,0.00039756,30]
[423164328,1779898268000,-511.751654,0.00039756,30]
[423164329,1779898268000,-708.380572,0.00039756,30]
[423164360,1779898268000,-151.0,0.00039756,30]
[423164330,1779898268000,-511.751654,0.00039756,30]
[423164326,1779898268000,-708.380572,0.00039756,30]
[423164325,1779898268000,-511.751654,0.00039756,30]
[423164320,1779898268000,-151.0,0.00039756,30]
[423164319,1779898268000,-511.751654,0.00039756,30]
[423164323,1779898268000,-151.0,0.00039756,30]
[423164324,1779898268000,-151.0,0.00039756,30]
[423164386,1779898269000,-171.302303,0.00039756,30]
[423164393,1779898269000,-171.302303,0.00039756,30]
[423164391,1779898269000,-171.302303,0.00039756,30]
[423164405,1779898269000,-151.0,0.00039756,30]
[423164407,1779898269000,-151.0,0.00039756,30]
[423164395,1779898269000,-270.277525,0.00039756,30]
[423164394,1779898269000,-270.277525,0.00039756,30]
[423164406,1779898269000,-270.277525,0.00039756,30]
[423164389,1779898269000,-171.302303,0.00039756,30]
[423164404,1779898269000,-270.277525,0.00039756,30]
[423164397,1779898269000,-151.0,0.00039756,30]
[423164398,1779898269000,-171.302303,0.00039756,30]
[423164402,1779898269000,-171.302299,0.00039756,30]
[423164400,1779898269000,-171.302303,0.00039756,30]
[423164399,1779898269000,-151.0,0.00039756,30]
[423164401,1779898269000,-151.0,0.00039756,30]
[423164403,1779898269000,-270.277525,0.00039756,30]
[423164408,1779898269000,-151.0,0.00039756,30]
[423164413,1779898269000,-269.421428,0.00039756,30]
[423164381,1779898269000,-1266.684663,0.00039756,30]
[423164410,1779898269000,-270.277525,0.00039756,30]
[423164396,1779898269000,-270.277525,0.00039756,30]
[423164392,1779898269000,-151.0,0.00039756,30]
[423164371,1779898269000,-1266.684672,0.00039756,30]
[423164388,1779898269000,-151.0,0.00039756,30]
[423164415,1779898269000,-269.421428,0.00039756,30]
[423164365,1779898269000,-151.0,0.00039756,30]
[423164363,1779898269000,-151.0,0.00039756,30]
[423164364,1779898269000,-151.0,0.00039756,30]
[423164366,1779898269000,-151.0,0.00039756,30]
[423164368,1779898269000,-224.205825,0.00039756,30]
[423164378,1779898269000,-301.644538,0.00039756,30]
[423164367,1779898269000,-151.0,0.00039756,30]
[423164379,1779898269000,-1266.684672,0.00039756,30]
[423164369,1779898269000,-1266.684672,0.00039756,30]
[423164370,1779898269000,-1266.684672,0.00039756,30]
[423164374,1779898269000,-1266.684672,0.00039756,30]
[423164372,1779898269000,-1266.684672,0.00039756,30]
[423164375,1779898269000,-1266.684672,0.00039756,30]
[423164373,1779898269000,-1266.684672,0.00039756,30]
[423164376,1779898269000,-1266.684672,0.00039756,30]
[423164377,1779898269000,-1266.684672,0.00039756,30]
[423164380,1779898269000,-1266.684672,0.00039756,30]
[423164382,1779898269000,-171.302303,0.00039756,30]
[423164384,1779898269000,-171.302303,0.00039756,30]
[423164385,1779898269000,-171.302303,0.00039756,30]
[423164383,1779898269000,-171.302303,0.00039756,30]
[423164387,1779898269000,-171.302303,0.00039756,30]
[423164390,1779898269000,-151.0,0.00039756,30]
[423164412,1779898269000,-269.421428,0.00039756,30]
[423164427,1779898269000,-771.277333,0.00039756,30]
[423164411,1779898269000,-270.277525,0.00039756,30]
[423164437,1779898269000,-613.690197,0.00039756,30]
[423164444,1779898269000,-269.42142,0.00039756,30]
[423164445,1779898269000,-613.690197,0.00039756,30]
[423164443,1779898269000,-269.421428,0.00039756,30]
[423164441,1779898269000,-771.277333,0.00039756,30]
[423164446,1779898269000,-771.277333,0.00039756,30]
[423164449,1779898269000,-771.277333,0.00039756,30]
[423164448,1779898269000,-613.690197,0.00039756,30]
[423164452,1779898269000,-729.849317,0.00039756,30]
[423164450,1779898269000,-771.277329,0.00039756,30]
[423164447,1779898269000,-152.14509,0.00039756,30]
[423164453,1779898269000,-729.849317,0.00039756,30]
[423164454,1779898269000,-729.849317,0.00039756,30]
[423164455,1779898269000,-151.0,0.00039756,30]
[423164457,1779898269000,-151.0,0.00039756,30]
[423164456,1779898269000,-151.0,0.00039756,30]
[423164458,1779898269000,-729.849317,0.00039756,30]
[423164459,1779898269000,-729.849317,0.00039756,30]
[423164461,1779898269000,-729.849317,0.00039756,30]
[423164460,1779898269000,-729.849317,0.00039756,30]
[423164463,1779898269000,-729.849317,0.00039756,30]
[423164462,1779898269000,-729.849317,0.00039756,30]
[423164409,1779898269000,-270.277525,0.00039756,30]
[423164442,1779898269000,-613.690197,0.00039756,30]
[423164451,1779898269000,-613.690201,0.00039756,30]
[423164439,1779898269000,-771.277333,0.00039756,30]
[423164440,1779898269000,-269.421428,0.00039756,30]
[423164414,1779898269000,-270.277525,0.00039756,30]
[423164420,1779898269000,-270.277521,0.00039756,30]
[423164417,1779898269000,-613.690197,0.00039756,30]
[423164416,1779898269000,-270.277525,0.00039756,30]
[423164419,1779898269000,-613.690197,0.00039756,30]
[423164421,1779898269000,-771.277333,0.00039756,30]
[423164423,1779898269000,-771.277333,0.00039756,30]
[423164434,1779898269000,-269.421428,0.00039756,30]
[423164433,1779898269000,-613.690197,0.00039756,30]
[423164422,1779898269000,-613.690197,0.00039756,30]
[423164418,1779898269000,-771.277333,0.00039756,30]
[423164426,1779898269000,-269.421428,0.00039756,30]
[423164425,1779898269000,-269.421428,0.00039756,30]
[423164424,1779898269000,-269.421428,0.00039756,30]
[423164432,1779898269000,-269.421428,0.00039756,30]
[423164429,1779898269000,-771.277333,0.00039756,30]
[423164428,1779898269000,-613.690197,0.00039756,30]
[423164430,1779898269000,-613.690197,0.00039756,30]
[423164431,1779898269000,-771.277333,0.00039756,30]
[423164436,1779898269000,-771.277333,0.00039756,30]
[423164435,1779898269000,-269.421428,0.00039756,30]
[423164438,1779898269000,-613.690197,0.00039756,30]
[423164479,1779898270000,-222.24073418,0.00039756,2]
[423164480,1779898270000,-63999.80498799,0.00039756,2]
[423164482,1779898270000,-63999.80498799,0.00039756,2]
[423164483,1779898270000,-108611.54698809,0.00039757,24]
[423164481,1779898270000,-63999.80498799,0.00039756,2]
[423164489,1779898270000,-502113.79441678,0.00039757,30]
[423164484,1779898270000,-3550.4401146,0.00039757,30]
[423164487,1779898270000,-968159.0895625,0.00039757,60]
[423164491,1779898270000,-6004354.47654758,0.00039757,30]
[423164496,1779898270000,-500.0,0.00039757,120]
[423164474,1779898270000,-841.867711,0.00039756,30]
[423164478,1779898270000,-841.867715,0.00039756,30]
[423164476,1779898270000,-841.867711,0.00039756,30]
[423164465,1779898270000,-729.849317,0.00039756,30]
[423164485,1779898270000,-10258.9384492,0.00039757,30]
[423164486,1779898270000,-57497.71966941,0.00039757,30]
[423164475,1779898270000,-841.867711,0.00039756,30]
[423164470,1779898270000,-841.867711,0.00039756,30]
[423164471,1779898270000,-841.867711,0.00039756,30]
[423164473,1779898270000,-841.867711,0.00039756,30]
[423164468,1779898270000,-841.867711,0.00039756,30]
[423164469,1779898270000,-841.867711,0.00039756,30]
[423164467,1779898270000,-841.867711,0.00039756,30]
[423164466,1779898270000,-729.849312,0.00039756,30]
[423164464,1779898270000,-729.849317,0.00039756,30]
[423164495,1779898270000,-946.385,0.00039757,120]
[423164477,1779898270000,-841.867711,0.00039756,30]
[423164492,1779898270000,-5165.17462587,0.00039757,30]
[423164472,1779898270000,-841.867711,0.00039756,30]
[423164490,1779898270000,-590587.22376464,0.00039757,30]
[423164493,1779898270000,-245001.52139812,0.00039757,120]
[423164521,1779898270000,-151.0,0.00038356,30]
[423164517,1779898270000,-5209.4,0.00034369,30]
[423164520,1779898270000,-5209.4,0.00036165,30]
[423164518,1779898270000,-310.28230408,0.00035778,2]
[423164516,1779898270000,-5209.4,0.00032573,14]
[423164522,1779898270000,-151.0,0.0003933,30]
[423164515,1779898270000,-5209.4,0.00030777,7]
[423164514,1779898270000,-5209.4,0.00029,7]
[423164512,1779898270000,-191.6,0.00027656,2]
[423164513,1779898270000,-191.61,0.0002813,7]
[423164511,1779898270000,-191.6,0.00024658,2]
[423164510,1779898270000,-3205.70049164,0.00039757,30]
[423164509,1779898270000,-5545.07192733,0.00039757,30]
[423164519,1779898270000,-300.0,0.00035778,2]
[423164507,1779898270000,-425.37563939,0.00039757,30]
[423164506,1779898270000,-67803.91633653,0.00039757,30]
[423164497,1779898270000,-6000.0,0.00039757,30]
[423164494,1779898270000,-400.13973736,0.00039757,30]
[423164488,1779898270000,-25823.14592223,0.00039757,30]
[423164499,1779898270000,-8438971.01410116,0.00039757,30]
[423164500,1779898270000,-1382.64316347,0.00039757,30]
[423164498,1779898270000,-2872.0,0.00039757,120]
[423164502,1779898270000,-599.4115974,0.00039757,30]
[423164501,1779898270000,-1199.89,0.00039757,30]
[423164504,1779898270000,-261.5289737,0.00039757,30]
[423164505,1779898270000,-5209.4,0.00027184,7]
[423164508,1779898270000,-286.399996,0.00039757,30]
[423164503,1779898270000,-1258.67211886,0.00039757,30]
[423164545,1779898271000,-151.0,0.00039757,120]
[423164558,1779898271000,-100000.0,0.00039757,120]
[423164547,1779898271000,-308.71,0.00039757,120]
[423164549,1779898271000,-200924.37694583,0.00039757,30]
[423164548,1779898271000,-500.09999903,0.00039757,120]
[423164550,1779898271000,-638570.0,0.00039757,60]
[423164553,1779898271000,-102872.39423336,0.00039757,60]
[423164559,1779898271000,-160.0,0.00039757,2]
[423164552,1779898271000,-10651.49168974,0.00039757,60]
[423164561,1779898271000,-142214.47539388,0.00039757,120]
[423164554,1779898271000,-6162.97907627,0.00039757,60]
[423164556,1779898271000,-571.59381891,0.00039757,120]
[423164551,1779898271000,-465.64354953,0.00039757,120]
[423164555,1779898271000,-3548.39187491,0.00039757,120]
[423164562,1779898271000,-320.166467,0.00039757,2]
[423164557,1779898271000,-60318.90317335,0.00039757,60]
[423164563,1779898271000,-771.37819032,0.00039757,30]
[423164546,1779898271000,-51521.44412248,0.00039757,120]
[423164560,1779898271000,-160.44,0.00039757,2]
[423164544,1779898271000,-3330.0,0.00039757,120]
[423164525,1779898271000,-5209.4,0.00037961,30]
[423164543,1779898271000,-11572.90092431,0.00039757,120]
[423164523,1779898271000,-105908.45368312,0.00039757,30]
[423164524,1779898271000,-414358.13074346,0.00039757,30]
[423164526,1779898271000,-541747.80781049,0.00039757,30]
[423164536,1779898271000,-1013.04,0.00039757,120]
[423164535,1779898271000,-173.27196237,0.00039757,120]
[423164537,1779898271000,-5000.0,0.00039757,15]
[423164564,1779898271000,-18478.37,0.00039757,60]
[423164531,1779898271000,-50000.0,0.00039757,60]
[423164532,1779898271000,-406946.59848592,0.00039757,120]
[423164529,1779898271000,-15000.0,0.00039757,80]
[423164527,1779898271000,-188.7,0.00039757,30]
[423164528,1779898271000,-4278.02636882,0.00039757,31]
[423164533,1779898271000,-4051.33405493,0.00039757,30]
[423164534,1779898271000,-79095.26785276,0.00039757,31]
[423164530,1779898271000,-89161.2,0.00039757,120]
[423164538,1779898271000,-5001.0,0.00039757,7]
[423164539,1779898271000,-1000.0,0.00039757,30]
[423164540,1779898271000,-1000.0,0.00039757,30]
[423164541,1779898271000,-1000.0,0.00039757,30]
[423164542,1779898271000,-1000.0,0.00039757,30]
[423164569,1779898271000,-160.0,0.00039757,2]
[423164568,1779898271000,-160.0,0.00039757,2]
[423164570,1779898271000,-160.0,0.00039757,2]
[423164593,1779898271000,-56017.13399573,0.00039757,2]
[423164571,1779898271000,-160.0,0.00039757,2]
[423164595,1779898271000,-2526772.42581171,0.00039757,30]
[423164592,1779898271000,-500.0,0.00039757,120]
[423164591,1779898271000,-1123.0,0.00039757,30]
[423164589,1779898271000,-1123.0,0.00039757,30]
[423164597,1779898271000,-508.01423752,0.00039757,30]
[423164598,1779898271000,-1677.04019348,0.00021625,2]
[423164599,1779898271000,-300.0,0.00035778,2]
[423164602,1779898271000,-151.0,0.0003933,30]
[423164603,1779898271000,-109092.10751813,0.00039757,30]
[423164601,1779898271000,-151.0,0.00038356,30]
[423164600,1779898271000,-300.0,0.00035778,2]
[423164604,1779898271000,-1270.76464034,0.00039757,30]
[423164606,1779898271000,-671.24922712,0.00039757,30]
[423164605,1779898271000,-302.639205,0.00039757,30]
[423164608,1779898271000,-687.47024456,0.00039757,30]
[423164607,1779898271000,-10530.5528,0.00039757,30]
[423164609,1779898271000,-632.03186711,0.00039757,30]
[423164594,1779898271000,-1352654.76908822,0.00039757,30]
[423164590,1779898271000,-575.25839294,0.00039757,30]
[423164596,1779898271000,-666.56019543,0.00039757,30]
[423164588,1779898271000,-224.95964072,0.00039757,7]
[423164572,1779898271000,-160.0,0.00039757,2]
[423164573,1779898271000,-319.56,0.00039757,2]
[423164574,1779898271000,-2301.10489874,0.00039757,2]
[423164575,1779898271000,-3182.0,0.00039757,120]
[423164565,1779898271000,-20406.6404106,0.00039757,2]
[423164566,1779898271000,-11996.999988,0.00039757,30]
[423164586,1779898271000,-363.23,0.00039757,120]
[423164576,1779898271000,-487.0,0.00039757,120]
[423164577,1779898271000,-487.0,0.00039757,120]
[423164567,1779898271000,-160.0,0.00039757,2]
[423164587,1779898271000,-19809.0,0.00039757,120]
[423164581,1779898271000,-918.29,0.00039757,120]
[423164583,1779898271000,-487.0,0.00039757,120]
[423164582,1779898271000,-160.507649,0.00039757,2]
[423164580,1779898271000,-875.83,0.00039757,120]
[423164584,1779898271000,-487.0,0.00039757,120]
[423164578,1779898271000,-487.0,0.00039757,120]
[423164585,1779898271000,-552.2,0.00039757,120]
[423164579,1779898271000,-487.0,0.00039757,120]
[423164613,1779898272000,-199.81,0.00027626,30]
[423164614,1779898272000,-153.28,0.00027647,2]
[423164612,1779898272000,-229.94,0.00024658,2]
[423164615,1779898272000,-241.09,0.0002766,30]
[423164611,1779898272000,-652.0,0.00039757,30]
[423164610,1779898272000,-721377.20477079,0.00039757,30]
[423164622,1779898272000,-199.81,0.00028236,7]
[423164618,1779898272000,-199.81,0.00027931,2]
[423164620,1779898272000,-199.81,0.00028084,30]
[423164619,1779898272000,-241.09,0.00027957,2]
[423164627,1779898272000,-357.746615,0.00031682,10]
[423164625,1779898272000,-199.81,0.00028389,2]
[423164624,1779898272000,-8711.71362451,0.00031682,10]
[423164616,1779898272000,-199.81,0.00027778,7]
[423164617,1779898272000,-241.09,0.00027808,7]
[423164621,1779898272000,-241.09,0.00028106,30]
[423164626,1779898272000,-1836.90631841,0.00031682,10]
[423164623,1779898272000,-241.09,0.00028255,7]
[423164628,1779898362000,-170.99,0.00012728,2]
[423164629,1779898382000,-129.01,0.00012728,2]
[423164630,1779898422000,2000.0,0.0002808,120]
[423164631,1779898435000,-500.0,0.00012476,2]
[423164632,1779898456000,-169.47,0.00012376,2]
[423164633,1779898476000,-21.18440323,0.00012376,2]
[423164634,1779898529000,-662.78,0.00012476,2]
[423164636,1779898549000,-526.5087776,0.00012476,2]
[423164638,1779898570000,-1102.4178676,0.00012476,2]
[423164639,1779898570000,156.74,6.396e-05,2]
[423164641,1779898570000,156.74,7.817e-05,2]
[423164640,1779898570000,156.74,7.106e-05,2]
[423164643,1779898570000,156.74,9.238e-05,2]
[423164645,1779898570000,156.74,0.00010659,2]
[423164642,1779898570000,156.74,8.527e-05,2]
[423164644,1779898570000,156.74,9.949e-05,2]
[423164646,1779898590000,-156.74,0.0001137,2]
[423164647,1779898608000,2000.0,0.0002808,120]
[423164651,1779898643000,-156.74,0.00012081,2]
[423164669,1779898937000,10085.18769923,0.000107,2]
[423164670,1779898943000,151.68364513,9.04e-05,2]
[423164676,1779899056000,-192.78446307,0.00012368,2]
[423164677,1779899068000,-7.21553693,0.00012368,2]
[423164679,1779899091000,-634.49,0.0001252,2]
[423164678,1779899091000,-944.48,0.0001252,2]
[423164680,1779899111000,-162.7,0.00012529,2]
[423164681,1779899122000,-27.95440323,0.00012529,2]
[423164682,1779899143000,-332.09025311,0.00012629,2]
[423164683,1779899186000,-167.90974689,0.00012629,2]
[423164684,1779899239000,-322.41805476,0.00012643,2]
[423164685,1779899249000,-586.42928351,0.00012643,2]
[423164686,1779899249000,-92.83578339,0.0001272,2]
[423164688,1779899291000,300.0,0.00012429,2]
[423164687,1779899291000,200.0,0.00012429,2]
[423164692,1779899359000,-992.48555564,0.00012728,2]
[423164691,1779899359000,-300.0,0.00012728,2]
[423164690,1779899359000,-337.21294385,0.0001272,2]
[423164694,1779899362000,-50.89276532,0.00012728,2]
[423164693,1779899362000,-207.51444436,0.00012728,2]
[423164695,1779899424000,200.0,0.00012643,2]
[423164719,1779899432000,-500.0,0.00012729,2]
[423164716,1779899432000,-500.0,0.00012729,2]
[423164714,1779899432000,-95.9886499,0.00012729,2]
[423164712,1779899432000,-500.0,0.00012729,2]
[423164725,1779899432000,-500.0,0.00012729,2]
[423164711,1779899432000,-500.0,0.00012729,2]
[423164713,1779899432000,-404.0113501,0.00012729,2]
[423164721,1779899432000,-500.0,0.00012729,2]
[423164723,1779899432000,-500.0,0.00012729,2]
[423164715,1779899432000,-500.0,0.00012729,2]
[423164705,1779899432000,-500.0,0.00012729,2]
[423164709,1779899432000,-221.70267272,0.00012729,2]
[423164708,1779899432000,-500.0,0.00012729,2]
[423164706,1779899432000,-462.3073748,0.00012729,2]
[423164707,1779899432000,-54.0537009,0.00012729,2]
[423164704,1779899432000,-500.0,0.00012729,2]
[423164701,1779899432000,-300.0,0.00012728,2]
[423164703,1779899432000,-500.0,0.00012729,2]
[423164702,1779899432000,-157.21481009,0.00012729,2]
[423164700,1779899432000,-408.57949976,0.00012643,2]
[423164710,1779899432000,-278.29732728,0.00012729,2]
[423164718,1779899432000,-500.0,0.00012729,2]
[423164735,1779899432000,-500.0,0.00012729,2]
[423164727,1779899432000,-500.0,0.00012729,2]
[423164717,1779899432000,-500.0,0.00012729,2]
[423164749,1779899432000,-29841.03663776,0.0001273,2]
[423164748,1779899432000,-49786.10859352,0.0001273,2]
[423164750,1779899432000,-50815.10879747,0.0001273,2]
[423164745,1779899432000,-2561.0,0.0001273,2]
[423164742,1779899432000,-191.93933053,0.00012729,2]
[423164746,1779899432000,-3195.616,0.0001273,2]
[423164744,1779899432000,-248.48479193,0.00012729,2]
[423164743,1779899432000,-500.0,0.00012729,2]
[423164741,1779899432000,-154.80464101,0.00012729,2]